fUSD/lending_fUSD_20250216
["ID","MTS","AMOUNT","RATE_DAILY","PERIOD"]
[353263815,1739722252656,-500.0,0.00011367,2]
[353263816,1739722252665,-500.0,0.00011367,2]
[353263817,1739722252674,-500.0,0.00011367,2]
[353263818,1739722252683,-500.0,0.00011367,2]
[353263819,1739722252692,-500.0,0.00011367,2]
[353263820,1739722252702,-500.0,0.00011367,2]
[353263821,1739722252711,-334.019757,0.00011367,2]
[353263822,1739722252720,-500.0,0.00011367,2]
[353263823,1739722252734,-500.0,0.00011367,2]
[353263824,1739722252743,-706.8,0.00011367,2]
[353263825,1739722252753,-500.0,0.00011367,2]
[353263826,1739722252763,-500.0,0.00011367,2]
[353263827,1739722252773,-768.0,0.00011367,2]
[353263828,1739722252783,-500.0,0.00011367,2]
[353263829,1739722252792,-500.0,0.00011367,2]
[353263830,1739722252802,-500.0,0.00011367,2]
[353263831,1739722252811,-442.486785,0.00011367,2]
[353263832,1739722252821,-500.0,0.00011367,2]
[353263833,1739722252830,-500.0,0.00011367,2]
[353263834,1739722252839,-500.0,0.00011367,2]
[353263835,1739722252849,-500.0,0.00011367,2]
[353263836,1739722252859,-500.0,0.00011367,2]
[353263837,1739722252868,-500.0,0.00011367,2]
[353263838,1739722252878,-956.97,0.00011367,2]
[353263839,1739722252887,-2145.36,0.00011367,2]
[353263840,1739722252900,-579.91,0.00011367,2]
[353263841,1739722252910,-500.0,0.00011367,2]
[353263842,1739722252919,-536.29,0.00011367,2]
[353263843,1739722252929,-500.0,0.00011367,2]
[353263844,1739722252938,-747.46,0.00011367,2]
[353263845,1739722252948,-500.0,0.00011367,2]
[353263846,1739722252957,-500.0,0.00011367,2]
[353263847,1739722252967,-692.26,0.00011367,2]
[353263848,1739722252977,-609.14,0.00011367,2]
[353263849,1739722252987,-500.0,0.00011367,2]
[353263850,1739722252997,-500.0,0.00011367,2]
[353263851,1739722253006,-500.0,0.00011367,2]
[353263852,1739722253015,-809.97,0.00011367,2]
[353263853,1739722253027,-512.74,0.00011367,2]
[353263854,1739722253038,-500.0,0.00011367,2]
[353263855,1739722253047,-892.17,0.00011367,2]
[353263856,1739722253056,-500.0,0.00011367,2]
[353263857,1739722253066,-360.6901154,0.00011367,2]
[353263858,1739722253075,-496.12587416,0.00011367,2]
[353263859,1739722253085,-969.53,0.00011367,2]
[353263860,1739722253095,-663.59,0.00011367,2]
[353263861,1739722253105,-1575.94,0.00011367,2]
[353263862,1739722253114,-612.7,0.00011367,2]
[353263863,1739722253124,-500.0,0.00011367,2]
[353263864,1739722253133,-500.0,0.00011367,2]
[353263865,1739722253143,-500.0,0.00011367,2]
[353263866,1739722253153,-500.0,0.00011367,2]
[353263867,1739722253163,-500.0,0.00011367,2]
[353263868,1739722253229,-566.48742611,0.00011367,2]
[353263869,1739722253238,-558.19,0.00011367,2]
[353263870,1739722253247,-500.0,0.00011367,2]
[353263871,1739722253256,-537.83,0.00011367,2]
[353263872,1739722253265,-500.0,0.00011367,2]
[353263873,1739722253274,-500.0,0.00011367,2]
[353263874,1739722253283,-500.0,0.00011367,2]
[353263875,1739722253292,-690.88,0.00011367,2]
[353263876,1739722253302,-500.0,0.00011367,2]
[353263877,1739722253311,-1095.32,0.00011367,2]
[353263878,1739722253320,-742.79,0.00011367,2]
[353263879,1739722253329,-500.0,0.00011367,2]
[353263880,1739722253338,-500.0,0.00011367,2]
[353263881,1739722253348,-680.75,0.00011367,2]
[353263882,1739722253357,-500.0,0.00011367,2]
[353263883,1739722253367,-500.0,0.00011367,2]
[353263884,1739722253376,-500.0,0.00011367,2]
[353263885,1739722253385,-849.81,0.00011367,2]
[353263886,1739722253396,-500.0,0.00011367,2]
[353263887,1739722253406,-500.0,0.00011367,2]
[353263888,1739722253415,-865.4,0.00011367,2]
[353263889,1739722253425,-500.0,0.00011367,2]
[353263890,1739722253435,-649.43,0.00011367,2]
[353263891,1739722253444,-692.22,0.00011367,2]
[353263892,1739722253454,-1772.42,0.00011367,2]
[353263893,1739722253464,-1000.0,0.00011367,2]
[353263894,1739722253473,-873.89,0.00011367,2]
[353263895,1739722253483,-500.0,0.00011367,2]
[353263896,1739722253492,-788.66,0.00011367,2]
[353263897,1739722253502,-500.0,0.00011367,2]
[353263898,1739722253513,-500.0,0.00011367,2]
[353263899,1739722253523,-500.0,0.00011367,2]
[353263900,1739722253533,-500.0,0.00011367,2]
[353263901,1739722253543,-500.0,0.00011367,2]
[353263902,1739722253553,-500.0,0.00011367,2]
[353263903,1739722253564,-500.0,0.00011367,2]
[353263904,1739722253574,-730.86,0.00011367,2]
[353263905,1739722253584,-941.43,0.00011367,2]
[353263906,1739722253594,-500.0,0.00011367,2]
[353263907,1739722253604,-500.0,0.00011367,2]
[353263908,1739722253614,-500.0,0.00011367,2]
[353263909,1739722253623,-500.0,0.00011367,2]
[353263910,1739722253633,-899.47,0.00011367,2]
[353263911,1739722253645,-549.57,0.00011367,2]
[353263912,1739722253654,-500.0,0.00011367,2]
[353263913,1739722253664,-500.0,0.00011367,2]
[353263914,1739722253674,-629.99885657,0.00011367,2]
[353263915,1739722253683,-733.73,0.00011367,2]
[353263916,1739722253692,-500.0,0.00011367,2]
[353263917,1739722253701,-500.0,0.00011367,2]
[353263918,1739722253710,-500.0,0.00011367,2]
[353263919,1739722253720,-500.0,0.00011367,2]
[353263920,1739722253730,-862.86,0.00011367,2]
[353263921,1739722253738,-500.0,0.00011367,2]
[353263922,1739722253748,-500.0,0.00011367,2]
[353263923,1739722253757,-604.23,0.00011367,2]
[353263924,1739722253766,-500.0,0.00011367,2]
[353263925,1739722253776,-545.44,0.00011367,2]
[353263926,1739722253786,-500.0,0.00011367,2]
[353263927,1739722253795,-500.0,0.00011367,2]
[353263928,1739722253805,-500.76,0.00011367,2]
[353263929,1739722253814,-500.0,0.00011367,2]
[353263930,1739722253824,-500.0,0.00011367,2]
[353263931,1739722253833,-500.0,0.00011367,2]
[353263932,1739722253843,-784.87,0.00011367,2]
[353263933,1739722253852,-500.0,0.00011367,2]
[353263934,1739722253862,-500.0,0.00011367,2]
[353263935,1739722253871,-500.0,0.00011367,2]
[353263936,1739722253881,-500.0,0.00011367,2]
[353263937,1739722253891,-975.8,0.00011367,2]
[353263938,1739722253901,-500.0,0.00011367,2]
[353263939,1739722253910,-2237.07,0.00011367,2]
[353263940,1739722253919,-525.89,0.00011367,2]
[353263941,1739722253929,-500.0,0.00011367,2]
[353263942,1739722253938,-500.0,0.00011368,2]
[353263943,1739722253948,-500.0,0.00011368,2]
[353263944,1739722253957,-500.0,0.00011368,2]
[353263945,1739722253968,-500.0,0.00011368,2]
[353263946,1739722253977,-500.0,0.00011368,2]
[353263947,1739722253986,-500.0,0.00011368,2]
[353263948,1739722253995,-500.0,0.00011368,2]
[353263949,1739722254004,-500.0,0.00011368,2]
[353263950,1739722254014,-500.0,0.00011368,2]
[353263951,1739722254025,-500.0,0.00011368,2]
[353263952,1739722254036,-500.0,0.00011368,2]
[353263953,1739722254046,-500.0,0.00011368,2]
[353263954,1739722254055,-500.0,0.00011368,2]
[353263955,1739722254064,-500.0,0.00011368,2]
[353263956,1739722254074,-500.0,0.00011368,2]
[353263957,1739722254083,-500.0,0.00011368,2]
[353263958,1739722254094,-500.0,0.00011368,2]
[353263959,1739722254103,-186.44,0.00011368,2]
[353263960,1739722254114,-500.0,0.00011368,2]
[353263961,1739722254123,-257.78075411,0.00011368,2]
[353263962,1739722254131,-500.0,0.00011368,2]
[353263963,1739722254140,-500.0,0.00011368,2]
[353263964,1739722254149,-500.0,0.00011368,2]
[353263965,1739722254159,-500.0,0.00011368,2]
[353263966,1739722254167,-500.0,0.00011368,2]
[353263967,1739722254177,-579.79,0.00011368,2]
[353263968,1739722254186,-500.0,0.00011368,2]
[353263969,1739722254196,-500.0,0.00011368,2]
[353263970,1739722254205,-500.0,0.00011368,2]
[353263971,1739722254214,-402.35435639,0.00011368,2]
[353263972,1739722254223,-500.0,0.00011368,2]
[353263973,1739722254233,-330.41598996,0.00011368,2]
[353263974,1739722254243,-500.0,0.00011368,2]
[353263975,1739722254252,-500.0,0.00011368,2]
[353263976,1739722254262,-500.0,0.00011368,2]
[353263977,1739722254272,-500.0,0.00011368,2]
[353263978,1739722254281,-500.0,0.00011368,2]
[353263979,1739722254291,-500.0,0.00011368,2]
[353263980,1739722254300,-500.0,0.00011368,2]
[353263981,1739722254309,-500.0,0.00011368,2]
[353263982,1739722254319,-706.17,0.00011368,2]
[353263983,1739722254328,-500.0,0.00011368,2]
[353263984,1739722254337,-500.0,0.00011368,2]
[353263985,1739722254347,-500.0,0.00011368,2]
[353263986,1739722254357,-500.0,0.00011368,2]
[353263987,1739722254366,-500.0,0.00011368,2]
[353263988,1739722254375,-500.0,0.00011368,2]
[353263989,1739722254385,-500.0,0.00011368,2]
[353263990,1739722254395,-721.65,0.00011368,2]
[353263991,1739722254404,-500.0,0.00011368,2]
[353263992,1739722254414,-500.0,0.00011368,2]
[353263993,1739722254423,-500.0,0.00011368,2]
[353263994,1739722254433,-500.0,0.00011427,2]
[353263995,1739722254442,-500.0,0.00011427,2]
[353263996,1739722254451,-680.35,0.00011427,2]
[353263997,1739722254461,-500.0,0.00011427,2]
[353263998,1739722254470,-730.51,0.00011427,2]
[353263999,1739722254479,-500.0,0.00011427,2]
[353264000,1739722254489,-744.11,0.00011427,2]
[353264001,1739722254498,-518.56,0.00011427,2]
[353264002,1739722254508,-500.0,0.00011427,2]
[353264003,1739722254517,-1094.78,0.00011427,2]
[353264004,1739722254528,-500.0,0.00011427,2]
[353264005,1739722254537,-1254.55,0.00011427,2]
[353264006,1739722254546,-624.5,0.00011427,2]
[353264007,1739722254556,-561.95,0.00011427,2]
[353264008,1739722254566,-500.0,0.00011427,2]
[353264009,1739722254575,-500.0,0.00011427,2]
[353264010,1739722254585,-1045.33,0.00011427,2]
[353264011,1739722254595,-500.0,0.00011427,2]
[353264012,1739722254605,-562.41,0.00011427,2]
[353264013,1739722254614,-500.0,0.00011427,2]
[353264014,1739722254624,-537.7,0.00011427,2]
[353264015,1739722254633,-1330.29,0.00011427,2]
[353264016,1739722254643,-1309.87,0.00011427,2]
[353264017,1739722254652,-500.0,0.00011427,2]
[353264018,1739722254661,-500.0,0.00011427,2]
[353264019,1739722254671,-500.0,0.00011427,2]
[353264020,1739722254681,-587.45,0.00011427,2]
[353264021,1739722254690,-954.36,0.00011427,2]
[353264022,1739722254699,-500.0,0.00011427,2]
[353264023,1739722254709,-500.0,0.00011427,2]
[353264024,1739722254718,-1000.0,0.0001144,2]
[353264025,1739722254727,-500.0,0.00011449,2]
[353264026,1739722254737,-500.0,0.00011449,2]
[353264027,1739722254746,-500.0,0.00011449,2]
[353264028,1739722254756,-500.0,0.00011449,2]
[353264029,1739722254765,-500.0,0.00011449,2]
[353264030,1739722254774,-500.0,0.00011449,2]
[353264031,1739722254783,-500.0,0.00011449,2]
[353264032,1739722254793,-500.0,0.00011449,2]
[353264033,1739722254802,-500.0,0.00011449,2]
[353264034,1739722254811,-500.0,0.00011449,2]
[353264035,1739722254820,-500.0,0.00011449,2]
[353264036,1739722254830,-500.0,0.00011449,2]
[353264037,1739722254839,-500.0,0.00011449,2]
[353264038,1739722254849,-500.0,0.00011449,2]
[353264039,1739722254858,-500.0,0.00011449,2]
[353264040,1739722254868,-500.0,0.00011449,2]
[353264041,1739722254878,-500.0,0.00011449,2]
[353264042,1739722254887,-500.0,0.00011449,2]
[353264043,1739722254897,-500.0,0.00011449,2]
[353264044,1739722254907,-500.0,0.00011449,2]
[353264045,1739722254916,-617.76071853,0.00011449,2]
[353264046,1739722254926,-500.0,0.00011449,2]
[353264047,1739722254935,-500.0,0.00011449,2]
[353264048,1739722254945,-500.0,0.00011449,2]
[353264049,1739722254954,-500.0,0.00011449,2]
[353264050,1739722254964,-500.0,0.00011449,2]
[353264051,1739722254973,-500.0,0.00011449,2]
[353264052,1739722254983,-500.0,0.00011449,2]
[353264053,1739722254992,-500.0,0.00011449,2]
[353264054,1739722255002,-500.0,0.00011449,2]
[353264055,1739722255011,-500.0,0.00011449,2]
[353264056,1739722255020,-500.0,0.00011449,2]
[353264057,1739722255033,-500.0,0.00011449,2]
[353264058,1739722255042,-500.0,0.00011449,2]
[353264059,1739722255051,-501.9824398,0.00011449,2]
[353264060,1739722255061,-500.0,0.00011449,2]
[353264061,1739722255070,-500.0,0.00011449,2]
[353264062,1739722255080,-500.0,0.00011449,2]
[353264063,1739722255090,-500.0,0.00011449,2]
[353264064,1739722255099,-500.0,0.00011449,2]
[353264065,1739722255109,-500.0,0.00011449,2]
[353264066,1739722255118,-527.75,0.00011449,2]
[353264067,1739722255128,-500.0,0.00011449,2]
[353264068,1739722255137,-500.0,0.00011449,2]
[353264069,1739722255147,-500.0,0.00011449,2]
[353264070,1739722255156,-500.0,0.00011449,2]
[353264071,1739722255166,-500.0,0.00011449,2]
[353264072,1739722255176,-500.0,0.00011449,2]
[353264073,1739722255185,-500.0,0.00011449,2]
[353264074,1739722255194,-500.0,0.00011449,2]
[353264075,1739722255204,-248.68712012,0.00011449,2]
[353264076,1739722255214,-500.0,0.00011449,2]
[353264077,1739722255223,-500.0,0.00011449,2]
[353264078,1739722255233,-500.0,0.00011449,2]
[353264079,1739722255242,-500.0,0.00011449,2]
[353264080,1739722255252,-471.92,0.00011449,2]
[353264081,1739722255261,-500.0,0.00011449,2]
[353264082,1739722255270,-500.0,0.00011449,2]
[353264083,1739722255280,-500.0,0.00011449,2]
[353264084,1739722255289,-500.0,0.00011449,2]
[353264085,1739722255299,-500.0,0.00011449,2]
[353264086,1739722255308,-500.0,0.00011449,2]
[353264087,1739722255318,-500.0,0.00011449,2]
[353264088,1739722255327,-500.0,0.00011449,2]
[353264089,1739722255338,-500.0,0.00011449,2]
[353264090,1739722255347,-500.0,0.00011449,2]
[353264091,1739722255356,-500.0,0.00011449,2]
[353264092,1739722255366,-500.0,0.00011449,2]
[353264093,1739722255376,-500.0,0.00011449,2]
[353264094,1739722255385,-500.0,0.00011449,2]
[353264095,1739722255395,-500.0,0.00011449,2]
[353264096,1739722255405,-500.0,0.00011449,2]
[353264097,1739722255415,-500.0,0.00011449,2]
[353264098,1739722255424,-500.0,0.00011449,2]
[353264099,1739722255434,-649.78,0.00011449,2]
[353264100,1739722255443,-1206.44,0.00011449,2]
[353264101,1739722255453,-500.0,0.00011449,2]
[353264102,1739722255462,-500.0,0.00011449,2]
[353264103,1739722255472,-500.0,0.00011449,2]
[353264104,1739722255482,-500.0,0.00011449,2]
[353264105,1739722255491,-500.0,0.00011449,2]
[353264106,1739722255500,-500.0,0.00011449,2]
[353264107,1739722255510,-334.019757,0.00011449,2]
[353264108,1739722255519,-500.0,0.00011449,2]
[353264109,1739722255529,-500.0,0.00011449,2]
[353264110,1739722255539,-706.8,0.00011449,2]
[353264111,1739722255548,-500.0,0.00011449,2]
[353264112,1739722255557,-500.0,0.00011449,2]
[353264113,1739722255567,-500.0,0.00011449,2]
[353264114,1739722255576,-500.0,0.00011449,2]
[353264115,1739722255585,-500.0,0.00011449,2]
[353264116,1739722255595,-442.486785,0.00011449,2]
[353264117,1739722255603,-500.0,0.00011449,2]
[353264118,1739722255613,-500.0,0.00011449,2]
[353264119,1739722255622,-500.0,0.00011449,2]
[353264120,1739722255632,-500.0,0.00011449,2]
[353264121,1739722255641,-500.0,0.00011449,2]
[353264122,1739722255651,-500.0,0.00011449,2]
[353264123,1739722255660,-956.97,0.00011449,2]
[353264124,1739722255670,-2145.36,0.00011449,2]
[353264125,1739722255679,-500.0,0.00011449,2]
[353264126,1739722255689,-536.29,0.00011449,2]
[353264127,1739722255699,-500.0,0.00011449,2]
[353264128,1739722255708,-747.46,0.00011449,2]
[353264129,1739722255718,-500.0,0.00011449,2]
[353264130,1739722255727,-500.0,0.00011449,2]
[353264131,1739722255736,-692.26,0.00011449,2]
[353264132,1739722255746,-609.14,0.00011449,2]
[353264133,1739722255755,-500.0,0.00011449,2]
[353264134,1739722255765,-500.0,0.00011449,2]
[353264135,1739722255774,-500.0,0.00011449,2]
[353264136,1739722255784,-512.74,0.00011449,2]
[353264137,1739722255794,-500.0,0.00011449,2]
[353264138,1739722255803,-892.17,0.00011449,2]
[353264139,1739722255813,-500.0,0.00011449,2]
[353264140,1739722255822,-663.59,0.00011449,2]
[353264141,1739722255831,-1575.94,0.00011449,2]
[353264142,1739722255841,-612.7,0.00011449,2]
[353264143,1739722255850,-206.22,0.00011449,2]
[353264144,1739722255859,-500.0,0.00011449,2]
[353264145,1739722255869,-500.0,0.00011449,2]
[353264146,1739722255878,-500.0,0.00011449,2]
[353264147,1739722255888,-558.19,0.00011449,2]
[353264148,1739722255898,-500.0,0.00011449,2]
[353264149,1739722255907,-500.0,0.00011449,2]
[353264150,1739722255916,-500.0,0.00011449,2]
[353264151,1739722255926,-690.88,0.00011449,2]
[353264152,1739722255935,-500.0,0.00011449,2]
[353264153,1739722255944,-1095.32,0.00011449,2]
[353264154,1739722255953,-500.0,0.00011449,2]
[353264155,1739722255963,-500.0,0.00011449,2]
[353264156,1739722255972,-680.75,0.00011449,2]
[353264157,1739722255981,-500.0,0.00011449,2]
[353264158,1739722255992,-500.0,0.00011449,2]
[353264159,1739722256002,-500.0,0.00011449,2]
[353264160,1739722256011,-500.0,0.00011449,2]
[353264161,1739722256020,-500.0,0.00011449,2]
[353264162,1739722256033,-865.4,0.00011449,2]
[353264163,1739722256043,-500.0,0.00011449,2]
[353264164,1739722256052,-649.43,0.00011449,2]
[353264165,1739722256061,-692.22,0.00011449,2]
[353264166,1739722256071,-1772.42,0.00011449,2]
[353264167,1739722256080,-873.89,0.00011449,2]
[353264168,1739722256089,-500.0,0.00011449,2]
[353264169,1739722256098,-500.0,0.00011449,2]
[353264170,1739722256108,-500.0,0.00011449,2]
[353264171,1739722256118,-500.0,0.00011449,2]
[353264172,1739722256127,-500.0,0.00011449,2]
[353264173,1739722256136,-500.0,0.00011449,2]
[353264174,1739722256146,-941.43,0.00011449,2]
[353264175,1739722256155,-500.0,0.00011449,2]
[353264176,1739722256165,-500.0,0.00011449,2]
[353264177,1739722256174,-500.0,0.00011449,2]
[353264178,1739722256184,-549.57,0.00011449,2]
[353264179,1739722256193,-500.0,0.00011449,2]
[353264180,1739722256202,-500.0,0.00011449,2]
[353264181,1739722256212,-733.73,0.00011449,2]
[353264182,1739722256221,-500.0,0.00011449,2]
[353264183,1739722256231,-862.86,0.00011449,2]
[353264184,1739722256241,-489.48,0.00011449,2]
[353264185,1739722256250,-500.0,0.00011449,2]
[353264186,1739722256260,-604.23,0.00011449,2]
[353264187,1739722256269,-500.0,0.00011449,2]
[353264188,1739722256278,-500.0,0.00011449,2]
[353264189,1739722256288,-500.0,0.00011449,2]
[353264190,1739722256297,-500.0,0.00011449,2]
[353264191,1739722256307,-500.0,0.00011449,2]
[353264192,1739722256316,-784.87,0.00011449,2]
[353264193,1739722256326,-500.0,0.00011449,2]
[353264194,1739722256336,-500.0,0.00011449,2]
[353264195,1739722256345,-500.0,0.00011449,2]
[353264196,1739722256355,-500.0,0.00011449,2]
[353264197,1739722256364,-975.8,0.00011449,2]
[353264198,1739722256374,-500.0,0.00011449,2]
[353264199,1739722256384,-2237.07,0.00011449,2]
[353264200,1739722256393,-525.89,0.00011449,2]
[353264201,1739722256402,-500.0,0.00011449,2]
[353264202,1739722256412,-852.0,0.0001145,2]
[353264203,1739722256422,-500.0,0.0001145,2]
[353264204,1739722256431,-500.0,0.0001145,2]
[353264205,1739722256441,-500.0,0.0001145,2]
[353264206,1739722256450,-296.16337387,0.0001145,2]
[353264207,1739722256459,-500.0,0.0001145,2]
[353264208,1739722256469,-500.0,0.0001145,2]
[353264209,1739722256478,-429.13874151,0.0001145,2]
[353264210,1739722256488,-500.0,0.0001145,2]
[353264211,1739722256498,-500.0,0.0001145,2]
[353264212,1739722256509,-588.59816548,0.0001145,2]
[353264213,1739722256518,-500.0,0.0001145,2]
[353264214,1739722256528,-500.0,0.0001145,2]
[353264215,1739722256537,-500.0,0.0001145,2]
[353264216,1739722256547,-500.0,0.0001145,2]
[353264217,1739722256556,-500.0,0.0001145,2]
[353264218,1739722256566,-500.0,0.0001145,2]
[353264219,1739722256576,-500.0,0.0001145,2]
[353264220,1739722256586,-500.0,0.0001145,2]
[353264221,1739722256596,-500.0,0.0001145,2]
[353264222,1739722256606,-500.0,0.0001145,2]
[353264223,1739722256615,-500.0,0.0001145,2]
[353264224,1739722256625,-500.0,0.0001145,2]
[353264225,1739722256634,-500.0,0.0001145,2]
[353264226,1739722256644,-579.79,0.0001145,2]
[353264227,1739722256653,-500.0,0.0001145,2]
[353264228,1739722256663,-406.64357321,0.0001145,2]
[353264229,1739722256673,-500.0,0.0001145,2]
[353264230,1739722256682,-500.0,0.0001145,2]
[353264231,1739722256693,-500.0,0.0001145,2]
[353264232,1739722256702,-500.0,0.0001145,2]
[353264233,1739722256712,-500.0,0.0001145,2]
[353264234,1739722256721,-500.0,0.0001145,2]
[353264235,1739722256731,-500.0,0.0001145,2]
[353264236,1739722256741,-500.0,0.0001145,2]
[353264237,1739722256750,-500.0,0.0001145,2]
[353264238,1739722256760,-706.17,0.0001145,2]
[353264239,1739722256769,-500.0,0.0001145,2]
[353264240,1739722256779,-500.0,0.0001145,2]
[353264241,1739722256789,-500.0,0.0001145,2]
[353264242,1739722256798,-500.0,0.0001145,2]
[353264243,1739722256807,-768.0,0.0001145,2]
[353264244,1739722256817,-500.0,0.0001145,2]
[353264245,1739722256826,-579.91,0.0001145,2]
[353264246,1739722256836,-500.0,0.0001145,2]
[353264247,1739722256845,-500.0,0.0001145,2]
[353264248,1739722256854,-809.97,0.0001145,2]
[353264249,1739722256865,-969.53,0.0001145,2]
[353264250,1739722256875,-721.65,0.0001145,2]
[353264251,1739722256885,-500.0,0.0001145,2]
[353264252,1739722256895,-537.83,0.0001145,2]
[353264253,1739722256904,-500.0,0.0001145,2]
[353264254,1739722256913,-742.79,0.0001145,2]
[353264255,1739722256922,-849.81,0.0001145,2]
[353264256,1739722256932,-500.0,0.0001145,2]
[353264257,1739722256942,-1000.0,0.0001145,2]
[353264258,1739722256951,-788.66,0.0001145,2]
[353264259,1739722256961,-500.0,0.0001145,2]
[353264260,1739722256971,-730.86,0.0001145,2]
[353264261,1739722256980,-899.47,0.0001145,2]
[353264262,1739722256989,-500.0,0.0001145,2]
[353264263,1739722256999,-485.74,0.00011478,2]
[353264264,1739722257009,-5000.0,0.00011506,3]
[353264265,1739722257018,-5000.0,0.00011506,3]
[353264266,1739722257030,-2751.0,0.00011507,2]
[353264267,1739722257041,-500.0,0.00011509,2]
[353264268,1739722257050,-500.0,0.00011509,2]
[353264269,1739722257059,-680.35,0.00011509,2]
[353264270,1739722257069,-500.0,0.00011509,2]
[353264271,1739722257079,-730.51,0.00011509,2]
[353264272,1739722257088,-500.0,0.00011509,2]
[353264273,1739722257098,-744.11,0.00011509,2]
[353264274,1739722257110,-518.56,0.00011509,2]
[353264275,1739722257120,-500.0,0.00011509,2]
[353264276,1739722257132,-1094.78,0.00011509,2]
[353264277,1739722257143,-500.0,0.00011509,2]
[353264278,1739722257153,-1254.55,0.00011509,2]
[353264279,1739722257162,-624.5,0.00011509,2]
[353264280,1739722257173,-561.95,0.00011509,2]
[353264281,1739722257182,-500.0,0.00011509,2]
[353264282,1739722257192,-500.0,0.00011509,2]
[353264283,1739722257201,-1045.33,0.00011509,2]
[353264284,1739722257375,-500.0,0.00011509,2]
[353264285,1739722257385,-562.41,0.00011509,2]
[353264286,1739722257396,-500.0,0.00011509,2]
[353264287,1739722257405,-537.7,0.00011509,2]
[353264288,1739722257415,-1330.29,0.00011509,2]
[353264289,1739722257425,-1309.87,0.00011509,2]
[353264290,1739722257436,-500.0,0.00011509,2]
[353264291,1739722257445,-500.0,0.00011509,2]
[353264292,1739722257456,-500.0,0.00011509,2]
[353264293,1739722257466,-587.45,0.00011509,2]
[353264294,1739722257475,-954.36,0.00011509,2]
[353264295,1739722257485,-500.0,0.00011509,2]
[353264296,1739722257495,-287.93299997,0.00011509,2]
[353264297,1739722257505,-192.62,0.00011517,2]
[353264298,1739722257514,-151.71,0.00011531,2]
[353264299,1739722257524,-500.0,0.00011531,2]
[353264300,1739722257533,-500.0,0.00011531,2]
[353264301,1739722257543,-500.0,0.00011531,2]
[353264302,1739722257552,-500.0,0.00011531,2]
[353264303,1739722257561,-500.0,0.00011531,2]
[353264304,1739722257571,-500.0,0.00011531,2]
[353264305,1739722257580,-500.0,0.00011531,2]
[353264306,1739722257590,-500.0,0.00011531,2]
[353264307,1739722257600,-423.99837089,0.00011531,2]
[353264308,1739722257609,-500.0,0.00011531,2]
[353264309,1739722257618,-500.0,0.00011531,2]
[353264310,1739722257627,-161.08,0.00011531,2]
[353264311,1739722257637,-527.75,0.00011531,2]
[353264312,1739722257646,-500.0,0.00011531,2]
[353264313,1739722257655,-500.0,0.00011531,2]
[353264314,1739722257665,-500.0,0.00011531,2]